[Event "*** Titled Tuesday Blitz"]
[Site "Chess.com"]
[Date "2020.10.20"]
[Round "11"]
[White "szefru"]
[Black "BanjoKazooieN64"]
[Result "0-1"]
[WhiteElo "2242"]
[BlackElo "2379"]
[TimeControl "180+1"]
[EndTime "12:04:15 PDT"]
[Termination "BanjoKazooieN64 won by resignation"]

1. e4 {[%clk 0:03:00.1]} 1... e5 {[%clk 0:03:00]} 2. Nf3 {[%clk 0:02:57.6]} 2...
Nc6 {[%clk 0:03:00.2]} 3. Bb5 {[%clk 0:02:58]} 3... f5 {[%clk 0:02:59.9]} 4.
exf5 {[%clk 0:02:53.5]} 4... Nf6 {[%clk 0:02:59.7]} 5. O-O {[%clk 0:02:52.7]}
5... Bc5 {[%clk 0:02:59.7]} 6. c3 {[%clk 0:02:52.1]} 6... O-O {[%clk 0:02:58.7]}
7. Bxc6 {[%clk 0:02:52]} 7... dxc6 {[%clk 0:02:58.6]} 8. d4 {[%clk 0:02:49.8]}
8... exd4 {[%clk 0:02:58.3]} 9. cxd4 {[%clk 0:02:48.5]} 9... Bd6 {[%clk
0:02:58.2]} 10. Qd3 {[%clk 0:02:45.2]} 10... Nd5 {[%clk 0:02:51.5]} 11. Bg5
{[%clk 0:02:42.8]} 11... Qe8 {[%clk 0:02:51.1]} 12. Nh4 {[%clk 0:02:32.5]} 12...
Qh5 {[%clk 0:02:48.6]} 13. Qd2 {[%clk 0:02:17.1]} 13... h6 {[%clk 0:02:46.4]}
14. Bxh6 {[%clk 0:02:05.9]} 14... Qxh6 {[%clk 0:02:43.4]} 15. Qxh6 {[%clk
0:02:04.3]} 15... gxh6 {[%clk 0:02:43.7]} 16. Nc3 {[%clk 0:02:02.9]} 16... Nxc3
{[%clk 0:02:41.2]} 17. bxc3 {[%clk 0:02:03]} 17... Bxf5 {[%clk 0:02:41.5]} 18.
Nxf5 {[%clk 0:01:54.2]} 18... Rxf5 {[%clk 0:02:41.5]} 19. Rab1 {[%clk
0:01:53.9]} 19... b6 {[%clk 0:02:41.4]} 20. Rbe1 {[%clk 0:01:53.8]} 20... Raf8
{[%clk 0:02:39.7]} 21. g3 {[%clk 0:01:53.5]} 21... Rf3 {[%clk 0:02:38.7]} 22.
Re3 {[%clk 0:01:51.6]} 22... Rxe3 {[%clk 0:02:37.7]} 23. fxe3 {[%clk 0:01:51.6]}
23... Rxf1+ {[%clk 0:02:38.3]} 24. Kxf1 {[%clk 0:01:52.5]} 24... b5 {[%clk
0:02:36.8]} 25. e4 {[%clk 0:01:52.6]} 25... Kf7 {[%clk 0:02:32.5]} 26. e5 {[%clk
0:01:51.4]} 26... Ba3 {[%clk 0:02:30.8]} 27. Kf2 {[%clk 0:01:52.2]} 27... Bb2
{[%clk 0:02:29.9]} 0-1

[Event "*** Titled Tuesday Blitz"]
[Site "Chess.com"]
[Date "2020.10.20"]
[Round "11"]
[White "cassoulet"]
[Black "Mikhail_Golubev"]
[Result "1-0"]
[WhiteElo "2682"]
[BlackElo "2543"]
[TimeControl "180+1"]
[EndTime "12:04:17 PDT"]
[Termination "cassoulet won by checkmate"]

1. d4 {[%clk 0:03:00.9]} 1... Nf6 {[%clk 0:02:58.9]} 2. c4 {[%clk 0:03:00.3]}
2... g6 {[%clk 0:02:58.7]} 3. Nc3 {[%clk 0:03:00.7]} 3... Bg7 {[%clk 0:02:59.4]}
4. e4 {[%clk 0:03:01.1]} 4... d6 {[%clk 0:03:00]} 5. Be2 {[%clk 0:03:00.8]} 5...
O-O {[%clk 0:02:59.8]} 6. h4 {[%clk 0:03:01.2]} 6... h5 {[%clk 0:02:48.6]} 7.
Bg5 {[%clk 0:03:00.1]} 7... Na6 {[%clk 0:02:41.4]} 8. Qd2 {[%clk 0:02:47.6]}
8... Nh7 {[%clk 0:02:00.1]} 9. Bh6 {[%clk 0:02:45.6]} 9... Bxh6 {[%clk 0:01:59]}
10. Qxh6 {[%clk 0:02:46.5]} 10... e5 {[%clk 0:01:58.6]} 11. dxe5 {[%clk
0:02:41.8]} 11... dxe5 {[%clk 0:01:58.2]} 12. Nf3 {[%clk 0:02:41.3]} 12... Bg4
{[%clk 0:01:33.5]} 13. Ng5 {[%clk 0:02:31.7]} 13... Nxg5 {[%clk 0:01:31.8]} 14.
hxg5 {[%clk 0:02:31.6]} 14... Bxe2 {[%clk 0:01:29.8]} 15. Nd5 {[%clk 0:02:31.2]}
15... Qf6 {[%clk 0:01:09.1]} 16. Nxf6# {[%clk 0:02:30.7]} 1-0

[Event "*** Titled Tuesday Blitz"]
[Site "Chess.com"]
[Date "2020.10.20"]
[Round "11"]
[White "TrickyFortem"]
[Black "ajedrezhoy"]
[Result "0-1"]
[WhiteElo "2412"]
[BlackElo "2230"]
[TimeControl "180+1"]
[EndTime "12:04:19 PDT"]
[Termination "ajedrezhoy won by checkmate"]

1. d4 {[%clk 0:03:00.9]} 1... Nf6 {[%clk 0:02:58.9]} 2. c4 {[%clk 0:03:01.3]}
2... b6 {[%clk 0:02:57.8]} 3. Nc3 {[%clk 0:03:01]} 3... Bb7 {[%clk 0:02:57.8]}
4. Nf3 {[%clk 0:03:01.7]} 4... g6 {[%clk 0:02:57.3]} 5. g3 {[%clk 0:03:02.1]}
5... Bg7 {[%clk 0:02:56.8]} 6. Bg2 {[%clk 0:03:01.4]} 6... c5 {[%clk 0:02:56.7]}
7. d5 {[%clk 0:02:58.2]} 7... a6 {[%clk 0:02:50.1]} 8. O-O {[%clk 0:02:57]} 8...
b5 {[%clk 0:02:50]} 9. d6 {[%clk 0:02:45.9]} 9... exd6 {[%clk 0:02:46.1]} 10.
Qxd6 {[%clk 0:02:39.8]} 10... b4 {[%clk 0:02:39.6]} 11. Na4 {[%clk 0:02:32.5]}
11... Ne4 {[%clk 0:02:37.8]} 12. Qf4 {[%clk 0:02:27.4]} 12... O-O {[%clk
0:02:10.2]} 13. Ne5 {[%clk 0:02:27.2]} 13... f5 {[%clk 0:02:03.6]} 14. h4 {[%clk
0:02:23.7]} 14... d6 {[%clk 0:02:02.8]} 15. Nd3 {[%clk 0:02:23.6]} 15... Bc6
{[%clk 0:02:00.2]} 16. Rb1 {[%clk 0:02:07.9]} 16... Bxa4 {[%clk 0:01:59.3]} 17.
Bxe4 {[%clk 0:02:08.5]} 17... fxe4 {[%clk 0:01:58.2]} 18. Qxe4 {[%clk
0:02:09.4]} 18... Bc6 {[%clk 0:01:58]} 19. Qe6+ {[%clk 0:02:09.7]} 19... Kh8
{[%clk 0:01:55]} 20. Bg5 {[%clk 0:02:09.8]} 20... Qd7 {[%clk 0:01:53.8]} 21. Qe3
{[%clk 0:02:09]} 21... Qh3 {[%clk 0:01:49.7]} 22. Nf4 {[%clk 0:02:05.4]} 22...
Qh1# {[%clk 0:01:48.4]} 0-1

[Event "*** Titled Tuesday Blitz"]
[Site "Chess.com"]
[Date "2020.10.20"]
[Round "11"]
[White "AliKa2810"]
[Black "ScarpaChess"]
[Result "1-0"]
[WhiteElo "2574"]
[BlackElo "2373"]
[TimeControl "180+1"]
[EndTime "12:04:21 PDT"]
[Termination "AliKa2810 won by resignation"]

1. d4 {[%clk 0:02:59.2]} 1... Nf6 {[%clk 0:02:58.3]} 2. Bg5 {[%clk 0:02:58.4]}
2... e6 {[%clk 0:02:56.5]} 3. e4 {[%clk 0:02:57.8]} 3... h6 {[%clk 0:02:54.1]}
4. Bxf6 {[%clk 0:02:58.3]} 4... Qxf6 {[%clk 0:02:54.6]} 5. Nd2 {[%clk
0:02:57.4]} 5... d5 {[%clk 0:02:42.8]} 6. Ngf3 {[%clk 0:02:53.2]} 6... Qd8
{[%clk 0:02:38.4]} 7. Bd3 {[%clk 0:02:49.3]} 7... Be7 {[%clk 0:02:38.6]} 8. O-O
{[%clk 0:02:42.1]} 8... O-O {[%clk 0:02:32.1]} 9. Qe2 {[%clk 0:02:42.2]} 9... b6
{[%clk 0:02:29.7]} 10. exd5 {[%clk 0:02:39.4]} 10... exd5 {[%clk 0:02:27.3]} 11.
Ne5 {[%clk 0:02:38.6]} 11... Bd6 {[%clk 0:02:22.1]} 12. f4 {[%clk 0:02:35.3]}
12... c5 {[%clk 0:02:18.9]} 13. c3 {[%clk 0:02:34.8]} 13... a5 {[%clk
0:02:02.7]} 14. f5 {[%clk 0:02:23.1]} 14... Ba6 {[%clk 0:01:59.1]} 15. Bxa6
{[%clk 0:02:22]} 15... Nxa6 {[%clk 0:01:59.7]} 16. f6 {[%clk 0:02:22.3]} 16...
g6 {[%clk 0:01:52.2]} 17. Qe3 {[%clk 0:02:17.9]} 17... Kh7 {[%clk 0:01:45.6]}
18. Ng4 {[%clk 0:02:17.7]} 18... g5 {[%clk 0:01:34.2]} 19. Qh3 {[%clk
0:02:15.6]} 1-0

[Event "*** Titled Tuesday Blitz"]
[Site "Chess.com"]
[Date "2020.10.20"]
[Round "11"]
[White "Playgood28"]
[Black "stolencandy13"]
[Result "0-1"]
[WhiteElo "2279"]
[BlackElo "2451"]
[TimeControl "180+1"]
[EndTime "12:04:36 PDT"]
[Termination "stolencandy13 won by resignation"]

1. d4 {[%clk 0:03:00.9]} 1... c6 {[%clk 0:02:59.8]} 2. c4 {[%clk 0:02:57.7]}
2... g6 {[%clk 0:02:59.9]} 3. Nc3 {[%clk 0:02:56.6]} 3... Bg7 {[%clk 0:03:00.8]}
4. Nf3 {[%clk 0:02:54.5]} 4... Nf6 {[%clk 0:02:59.4]} 5. Bf4 {[%clk 0:02:53.8]}
5... O-O {[%clk 0:02:59.3]} 6. h3 {[%clk 0:02:53.7]} 6... d5 {[%clk 0:02:59.2]}
7. e3 {[%clk 0:02:53.2]} 7... Nbd7 {[%clk 0:02:54.8]} 8. cxd5 {[%clk 0:02:51.3]}
8... Nxd5 {[%clk 0:02:53.1]} 9. Nxd5 {[%clk 0:02:48.1]} 9... cxd5 {[%clk
0:02:53]} 10. Bd3 {[%clk 0:02:48]} 10... Nf6 {[%clk 0:02:49]} 11. O-O {[%clk
0:02:45.7]} 11... Bd7 {[%clk 0:02:45.8]} 12. Rc1 {[%clk 0:02:42.8]} 12... Rc8
{[%clk 0:02:45.2]} 13. Qb3 {[%clk 0:02:42]} 13... Bc6 {[%clk 0:02:41.6]} 14. Ne5
{[%clk 0:02:36.9]} 14... Qb6 {[%clk 0:02:39.4]} 15. Qxb6 {[%clk 0:02:21.5]}
15... axb6 {[%clk 0:02:38.8]} 16. Rc2 {[%clk 0:02:15.8]} 16... Nd7 {[%clk
0:02:31.8]} 17. Nxd7 {[%clk 0:02:04]} 17... Bxd7 {[%clk 0:02:32.7]} 18. Rfc1
{[%clk 0:02:02.8]} 18... Rc6 {[%clk 0:02:25.6]} 19. b4 {[%clk 0:01:39.3]} 19...
Rfc8 {[%clk 0:02:22.7]} 20. Bc7 {[%clk 0:01:37]} 20... R8xc7 {[%clk 0:02:19]}
21. Rxc6 {[%clk 0:01:24.4]} 21... Rxc6 {[%clk 0:02:18.9]} 22. Rxc6 {[%clk
0:01:22.8]} 22... bxc6 {[%clk 0:02:17.6]} 0-1

[Event "*** Titled Tuesday Blitz"]
[Site "Chess.com"]
[Date "2020.10.20"]
[Round "11"]
[White "abhidabhi"]
[Black "Illingworth"]
[Result "0-1"]
[WhiteElo "2813"]
[BlackElo "2906"]
[TimeControl "180+1"]
[EndTime "12:04:40 PDT"]
[Termination "Illingworth won by resignation"]

1. Nf3 {[%clk 0:02:56.6]} 1... c5 {[%clk 0:02:59.8]} 2. g3 {[%clk 0:02:54.8]}
2... b6 {[%clk 0:02:59.8]} 3. Bg2 {[%clk 0:02:54.9]} 3... Bb7 {[%clk 0:03:00.4]}
4. O-O {[%clk 0:02:54.1]} 4... Nf6 {[%clk 0:03:00.9]} 5. c4 {[%clk 0:02:53.7]}
5... e6 {[%clk 0:03:01.3]} 6. Nc3 {[%clk 0:02:53.7]} 6... Be7 {[%clk 0:03:01.8]}
7. d4 {[%clk 0:02:53.7]} 7... cxd4 {[%clk 0:03:02.7]} 8. Qxd4 {[%clk 0:02:53.7]}
8... d6 {[%clk 0:03:03.3]} 9. Rd1 {[%clk 0:02:53.4]} 9... a6 {[%clk 0:03:02.9]}
10. b3 {[%clk 0:02:50.7]} 10... Nbd7 {[%clk 0:03:02.9]} 11. Bb2 {[%clk
0:02:50.2]} 11... Rc8 {[%clk 0:03:02.2]} 12. Qf4 {[%clk 0:02:48]} 12... Qc7
{[%clk 0:02:58.7]} 13. Rac1 {[%clk 0:02:46.3]} 13... O-O {[%clk 0:02:58.4]} 14.
e4 {[%clk 0:02:32.7]} 14... Qb8 {[%clk 0:02:58.5]} 15. h3 {[%clk 0:02:20.1]}
15... b5 {[%clk 0:02:52.8]} 16. cxb5 {[%clk 0:02:16.1]} 16... axb5 {[%clk
0:02:53.7]} 17. Ba3 {[%clk 0:02:11.5]} 17... Nc5 {[%clk 0:02:34.2]} 18. e5
{[%clk 0:01:37.7]} 18... dxe5 {[%clk 0:02:32.1]} 19. Qxe5 {[%clk 0:01:30.7]}
19... Bxf3 {[%clk 0:02:13.9]} 20. Bxf3 {[%clk 0:01:28.6]} 20... Qxe5 {[%clk
0:02:13.7]} 0-1

[Event "*** Titled Tuesday Blitz"]
[Site "Chess.com"]
[Date "2020.10.20"]
[Round "11"]
[White "mjray79"]
[Black "Savagelittlemole"]
[Result "1-0"]
[WhiteElo "2421"]
[BlackElo "2583"]
[TimeControl "180+1"]
[EndTime "12:05:05 PDT"]
[Termination "mjray79 won by checkmate"]

1. d4 {[%clk 0:03:00.9]} 1... Nf6 {[%clk 0:02:59.7]} 2. c4 {[%clk 0:03:00.8]}
2... e6 {[%clk 0:02:59.7]} 3. g3 {[%clk 0:02:59.1]} 3... d5 {[%clk 0:02:59.8]}
4. Bg2 {[%clk 0:02:59.3]} 4... dxc4 {[%clk 0:03:00.4]} 5. Nf3 {[%clk 0:02:59.7]}
5... Bb4+ {[%clk 0:03:00.6]} 6. Bd2 {[%clk 0:02:59.3]} 6... a5 {[%clk 0:03:01]}
7. O-O {[%clk 0:02:57.4]} 7... O-O {[%clk 0:03:01]} 8. Qc2 {[%clk 0:02:55.5]}
8... Bxd2 {[%clk 0:03:01]} 9. Nbxd2 {[%clk 0:02:55.3]} 9... b5 {[%clk
0:02:57.4]} 10. a4 {[%clk 0:02:55.1]} 10... c6 {[%clk 0:02:57.3]} 11. b3 {[%clk
0:02:53]} 11... cxb3 {[%clk 0:02:56.4]} 12. Nxb3 {[%clk 0:02:53.9]} 12... Ba6
{[%clk 0:02:52.5]} 13. Ne5 {[%clk 0:02:51.2]} 13... Nd5 {[%clk 0:02:52]} 14. Nc5
{[%clk 0:02:43.9]} 14... f6 {[%clk 0:02:44.6]} 15. Nxe6 {[%clk 0:02:36.2]} 15...
Qe8 {[%clk 0:02:28]} 16. Nxf8 {[%clk 0:02:32.5]} 16... fxe5 {[%clk 0:02:26.5]}
17. Nxh7 {[%clk 0:02:32]} 17... Qh5 {[%clk 0:02:12]} 18. Be4 {[%clk 0:02:16.7]}
18... bxa4 {[%clk 0:02:12]} 19. Bg6 {[%clk 0:02:13.4]} 19... Qxe2 {[%clk
0:02:10.2]} 20. Qf5 {[%clk 0:02:10.8]} 20... Nf6 {[%clk 0:01:41.6]} 21. Nxf6+
{[%clk 0:01:59.7]} 21... gxf6 {[%clk 0:01:42.5]} 22. Qe6+ {[%clk 0:01:59.6]}
22... Kg7 {[%clk 0:01:32.4]} 23. Qf7+ {[%clk 0:01:59.7]} 23... Kh6 {[%clk
0:01:32.5]} 24. Qh7+ {[%clk 0:01:50.3]} 24... Kg5 {[%clk 0:01:32.9]} 25. h4+
{[%clk 0:01:50.2]} 25... Kg4 {[%clk 0:01:33.3]} 26. Qh5+ {[%clk 0:01:50.1]}
26... Kh3 {[%clk 0:01:31.2]} 27. Bf5+ {[%clk 0:01:49.7]} 27... Qg4 {[%clk
0:01:29.9]} 28. Qxg4# {[%clk 0:01:50]} 1-0

[Event "*** Titled Tuesday Blitz"]
[Site "Chess.com"]
[Date "2020.10.20"]
[Round "11"]
[White "Sokoloco"]
[Black "sjam6687"]
[Result "0-1"]
[WhiteElo "2498"]
[BlackElo "2664"]
[TimeControl "180+1"]
[EndTime "12:05:19 PDT"]
[Termination "sjam6687 won by resignation"]

1. b3 {[%clk 0:03:00.9]} 1... e5 {[%clk 0:02:56.6]} 2. Bb2 {[%clk 0:03:01.2]}
2... d6 {[%clk 0:02:56.9]} 3. e3 {[%clk 0:02:58.2]} 3... Nf6 {[%clk 0:02:52.5]}
4. d4 {[%clk 0:02:57.7]} 4... exd4 {[%clk 0:02:51.7]} 5. exd4 {[%clk 0:02:57.5]}
5... d5 {[%clk 0:02:49]} 6. Nf3 {[%clk 0:02:56.7]} 6... Bb4+ {[%clk 0:02:46]} 7.
c3 {[%clk 0:02:56.2]} 7... Bd6 {[%clk 0:02:46.4]} 8. Bd3 {[%clk 0:02:56.7]} 8...
O-O {[%clk 0:02:45.9]} 9. O-O {[%clk 0:02:52.1]} 9... Bg4 {[%clk 0:02:46.1]} 10.
Nbd2 {[%clk 0:02:51]} 10... Nbd7 {[%clk 0:02:37.7]} 11. c4 {[%clk 0:02:50.5]}
11... c6 {[%clk 0:02:33.6]} 12. Qc2 {[%clk 0:02:50.3]} 12... Re8 {[%clk
0:02:27.9]} 13. Rfe1 {[%clk 0:02:46.5]} 13... Bxf3 {[%clk 0:02:11.6]} 14. Nxf3
{[%clk 0:02:46]} 14... h6 {[%clk 0:02:04.2]} 15. Ne5 {[%clk 0:02:42.6]} 15...
Qc7 {[%clk 0:02:00.8]} 16. cxd5 {[%clk 0:02:28.2]} 16... Nxd5 {[%clk 0:01:58.2]}
17. Bh7+ {[%clk 0:02:26.2]} 17... Kf8 {[%clk 0:01:57.3]} 18. Qf5 {[%clk
0:02:23.1]} 18... N7f6 {[%clk 0:01:56.5]} 19. Bc1 {[%clk 0:01:59.9]} 19... Qa5
{[%clk 0:01:31.1]} 20. Bxh6 {[%clk 0:01:45.5]} 20... gxh6 {[%clk 0:01:23.8]} 21.
Qh5 {[%clk 0:01:37.6]} 21... Nxh5 {[%clk 0:01:22.6]} 0-1

[Event "*** Titled Tuesday Blitz"]
[Site "Chess.com"]
[Date "2020.10.20"]
[Round "11"]
[White "GregShahade"]
[Black "Brave_spirit12"]
[Result "1-0"]
[WhiteElo "2651"]
[BlackElo "2474"]
[TimeControl "180+1"]
[EndTime "12:05:23 PDT"]
[Termination "GregShahade won by resignation"]

1. e4 {[%clk 0:03:00.9]} 1... e6 {[%clk 0:02:59.5]} 2. d4 {[%clk 0:03:00.5]}
2... d5 {[%clk 0:02:59.7]} 3. Nd2 {[%clk 0:03:01.2]} 3... c5 {[%clk 0:02:57.7]}
4. exd5 {[%clk 0:03:01.2]} 4... exd5 {[%clk 0:02:54.4]} 5. Ngf3 {[%clk 0:03:01]}
5... Nc6 {[%clk 0:02:54.6]} 6. Bb5 {[%clk 0:03:00.6]} 6... Bd6 {[%clk
0:02:53.3]} 7. dxc5 {[%clk 0:03:00.1]} 7... Bxc5 {[%clk 0:02:48.1]} 8. O-O
{[%clk 0:03:00.6]} 8... Ne7 {[%clk 0:02:47.4]} 9. Nb3 {[%clk 0:03:00.6]} 9...
Bd6 {[%clk 0:02:47.4]} 10. Re1 {[%clk 0:03:00.9]} 10... O-O {[%clk 0:02:47.3]}
11. Bg5 {[%clk 0:03:01.2]} 11... f6 {[%clk 0:02:46.2]} 12. Bh4 {[%clk
0:02:59.1]} 12... Bg4 {[%clk 0:02:45.2]} 13. Be2 {[%clk 0:02:47.3]} 13... Rc8
{[%clk 0:02:40.9]} 14. Bg3 {[%clk 0:02:46.5]} 14... Bxg3 {[%clk 0:02:27.7]} 15.
hxg3 {[%clk 0:02:46.2]} 15... Qc7 {[%clk 0:02:20]} 16. Nfd4 {[%clk 0:02:45.1]}
16... Bxe2 {[%clk 0:02:18]} 17. Qxe2 {[%clk 0:02:43.7]} 17... Rfe8 {[%clk
0:02:13.5]} 18. Qe6+ {[%clk 0:02:33.7]} 18... Kh8 {[%clk 0:02:11.7]} 19. Nb5
{[%clk 0:02:33.8]} 19... Qb6 {[%clk 0:01:45.4]} 20. Nd6 {[%clk 0:02:31]} 20...
Ne5 {[%clk 0:01:31.9]} 21. Rxe5 {[%clk 0:02:21.3]} 21... fxe5 {[%clk 0:00:37.2]}
22. Nf7+ {[%clk 0:02:19.6]} 1-0

[Event "*** Titled Tuesday Blitz"]
[Site "Chess.com"]
[Date "2020.10.20"]
[Round "11"]
[White "YIYUKI"]
[Black "Triumphmate"]
[Result "1-0"]
[WhiteElo "2338"]
[BlackElo "2407"]
[TimeControl "180+1"]
[EndTime "12:05:30 PDT"]
[Termination "YIYUKI won by resignation"]

1. e4 {[%clk 0:02:49.3]} 1... d5 {[%clk 0:03:00.9]} 2. exd5 {[%clk 0:02:48.2]}
2... Nf6 {[%clk 0:03:01.5]} 3. c4 {[%clk 0:02:46.7]} 3... c6 {[%clk 0:03:00.9]}
4. d4 {[%clk 0:02:46.2]} 4... cxd5 {[%clk 0:03:00.5]} 5. Nc3 {[%clk 0:02:46.2]}
5... Bg4 {[%clk 0:03:00.3]} 6. Qb3 {[%clk 0:02:43.5]} 6... Qc8 {[%clk
0:02:58.1]} 7. Bg5 {[%clk 0:02:39.9]} 7... e6 {[%clk 0:02:57.6]} 8. Bxf6 {[%clk
0:02:38.4]} 8... gxf6 {[%clk 0:02:57.6]} 9. cxd5 {[%clk 0:02:38.4]} 9... Bg7
{[%clk 0:02:56.1]} 10. Bb5+ {[%clk 0:02:35.6]} 10... Nd7 {[%clk 0:02:55.5]} 11.
dxe6 {[%clk 0:02:34.1]} 11... Bxe6 {[%clk 0:02:56.4]} 12. d5 {[%clk 0:02:34.1]}
12... Bf5 {[%clk 0:02:56.1]} 13. Nge2 {[%clk 0:02:30.5]} 13... O-O {[%clk
0:02:56.2]} 14. O-O {[%clk 0:02:30]} 14... a6 {[%clk 0:02:56.8]} 15. Bxd7 {[%clk
0:02:28.3]} 15... Qxd7 {[%clk 0:02:56.4]} 16. Ng3 {[%clk 0:02:26.3]} 16... Bg6
{[%clk 0:02:56.3]} 17. Rad1 {[%clk 0:02:25.7]} 17... Rac8 {[%clk 0:02:52.5]} 18.
f4 {[%clk 0:02:25.2]} 18... f5 {[%clk 0:02:48.2]} 19. Rfe1 {[%clk 0:02:22.5]}
19... Qd6 {[%clk 0:02:44.7]} 20. Qxb7 {[%clk 0:02:03.3]} 20... Qxf4 {[%clk
0:02:37.5]} 21. d6 {[%clk 0:02:03.2]} 21... Rb8 {[%clk 0:02:17.5]} 22. Qd5
{[%clk 0:01:59]} 22... Rxb2 {[%clk 0:02:16.7]} 23. d7 {[%clk 0:01:56.1]} 23...
Bxc3 {[%clk 0:01:58.1]} 24. d8=Q {[%clk 0:01:54.5]} 24... Rxd8 {[%clk
0:01:58.2]} 25. Qxd8+ {[%clk 0:01:54.3]} 25... Kg7 {[%clk 0:01:58.8]} 26. Rf1
{[%clk 0:01:47.8]} 26... Qe3+ {[%clk 0:01:54.8]} 27. Kh1 {[%clk 0:01:47.6]}
27... f4 {[%clk 0:01:55.4]} 28. Qg5 {[%clk 0:01:39.5]} 28... h6 {[%clk 0:01:31]}
29. Nf5+ {[%clk 0:01:37.6]} 29... Kh7 {[%clk 0:01:29.6]} 30. Qxh6+ {[%clk
0:01:36.6]} 1-0

[Event "*** Titled Tuesday Blitz"]
[Site "Chess.com"]
[Date "2020.10.20"]
[Round "11"]
[White "northridgehawk"]
[Black "Tenamu"]
[Result "1-0"]
[WhiteElo "2264"]
[BlackElo "2408"]
[TimeControl "180+1"]
[EndTime "12:05:37 PDT"]
[Termination "northridgehawk won by resignation"]

1. e4 {[%clk 0:03:00.9]} 1... e6 {[%clk 0:02:59.8]} 2. Nc3 {[%clk 0:03:00.2]}
2... d5 {[%clk 0:02:56.3]} 3. d4 {[%clk 0:03:00.7]} 3... Nf6 {[%clk 0:02:55.5]}
4. e5 {[%clk 0:02:59.5]} 4... Nfd7 {[%clk 0:02:53.2]} 5. Nf3 {[%clk 0:03:00]}
5... c5 {[%clk 0:02:52.7]} 6. dxc5 {[%clk 0:03:00.9]} 6... Nc6 {[%clk
0:02:51.8]} 7. Bf4 {[%clk 0:03:01.1]} 7... Bxc5 {[%clk 0:02:49.5]} 8. Bd3 {[%clk
0:03:01.2]} 8... Qb6 {[%clk 0:02:45.7]} 9. Qd2 {[%clk 0:03:00.3]} 9... Qxb2
{[%clk 0:02:43.8]} 10. Rb1 {[%clk 0:02:59.6]} 10... Qa3 {[%clk 0:02:42.8]} 11.
Nb5 {[%clk 0:03:00.1]} 11... Qa4 {[%clk 0:02:35.5]} 12. Nc7+ {[%clk 0:02:56.7]}
12... Ke7 {[%clk 0:02:35.2]} 13. Nxa8 {[%clk 0:02:56.1]} 13... b6 {[%clk
0:02:30]} 14. O-O {[%clk 0:02:54.9]} 14... Ba6 {[%clk 0:02:28.9]} 15. Nc7 {[%clk
0:02:52.4]} 15... Bxd3 {[%clk 0:02:27]} 16. cxd3 {[%clk 0:02:53.3]} 16... Rc8
{[%clk 0:02:25.6]} 17. Nb5 {[%clk 0:02:52.2]} 17... Bb4 {[%clk 0:02:24.6]} 18.
Nc3 {[%clk 0:02:40.1]} 18... Qa5 {[%clk 0:02:22.8]} 19. Rxb4 {[%clk 0:02:36.2]}
19... Qxb4 {[%clk 0:02:21.2]} 20. Rb1 {[%clk 0:02:32.4]} 20... Qc5 {[%clk
0:02:14.9]} 21. Ne2 {[%clk 0:02:17.5]} 21... Na5 {[%clk 0:02:09.1]} 22. h4
{[%clk 0:02:12.6]} 22... Qc2 {[%clk 0:02:05.1]} 23. Qb4+ {[%clk 0:02:10]} 23...
Ke8 {[%clk 0:02:02.4]} 24. Ned4 {[%clk 0:02:04.3]} 24... Qxd3 {[%clk 0:01:57.8]}
25. Bg5 {[%clk 0:01:56.7]} 25... Rc5 {[%clk 0:01:53.8]} 26. Re1 {[%clk
0:01:42.3]} 26... h6 {[%clk 0:01:49.1]} 27. Be3 {[%clk 0:01:40.4]} 27... Qc4
{[%clk 0:01:44]} 28. Qb1 {[%clk 0:01:39]} 28... g6 {[%clk 0:01:42]} 29. h5
{[%clk 0:01:35.5]} 29... Nf8 {[%clk 0:01:38.4]} 30. hxg6 {[%clk 0:01:34.2]}
30... Nxg6 {[%clk 0:01:39.3]} 31. Nxe6 {[%clk 0:01:32.6]} 31... Rc8 {[%clk
0:01:34.8]} 32. Ng7+ {[%clk 0:01:29.6]} 1-0

[Event "*** Titled Tuesday Blitz"]
[Site "Chess.com"]
[Date "2020.10.20"]
[Round "11"]
[White "PawnEatingZombie"]
[Black "enriquebutti"]
[Result "1-0"]
[WhiteElo "2132"]
[BlackElo "1992"]
[TimeControl "180+1"]
[EndTime "12:05:46 PDT"]
[Termination "PawnEatingZombie won by resignation"]

1. d4 {[%clk 0:03:00.9]} 1... Nf6 {[%clk 0:02:58.6]} 2. c4 {[%clk 0:03:01.2]}
2... e6 {[%clk 0:02:58]} 3. Nc3 {[%clk 0:03:01]} 3... c5 {[%clk 0:02:55]} 4. d5
{[%clk 0:03:00.3]} 4... exd5 {[%clk 0:02:53]} 5. cxd5 {[%clk 0:03:01.2]} 5... d6
{[%clk 0:02:52.4]} 6. e4 {[%clk 0:03:01.5]} 6... g6 {[%clk 0:02:51.9]} 7. Bd3
{[%clk 0:03:02.1]} 7... Bg7 {[%clk 0:02:51.1]} 8. h3 {[%clk 0:03:02.7]} 8... O-O
{[%clk 0:02:50.4]} 9. Nf3 {[%clk 0:03:03.2]} 9... Re8 {[%clk 0:02:41.9]} 10. O-O
{[%clk 0:03:02.9]} 10... c4 {[%clk 0:02:41.7]} 11. Bxc4 {[%clk 0:03:03.5]} 11...
Nxe4 {[%clk 0:02:41]} 12. Nxe4 {[%clk 0:03:04.2]} 12... Rxe4 {[%clk 0:02:40.3]}
13. Bg5 {[%clk 0:03:04.9]} 13... Bf6 {[%clk 0:02:34]} 14. Bd3 {[%clk 0:02:19.8]}
14... Re8 {[%clk 0:02:29.8]} 15. Re1 {[%clk 0:02:08.3]} 15... Rxe1+ {[%clk
0:02:25.6]} 16. Qxe1 {[%clk 0:02:08.1]} 16... Nd7 {[%clk 0:02:21.6]} 17. h4
{[%clk 0:02:02.4]} 17... Nc5 {[%clk 0:02:10.4]} 18. Bxf6 {[%clk 0:01:51.8]}
18... Qxf6 {[%clk 0:02:09.7]} 19. Qe8+ {[%clk 0:01:51.8]} 19... Kg7 {[%clk
0:02:08.4]} 20. Bc4 {[%clk 0:01:37.8]} 20... Qxb2 {[%clk 0:02:04.7]} 21. Re1
{[%clk 0:01:36.7]} 21... Qf6 {[%clk 0:01:55.3]} 22. Ng5 {[%clk 0:01:30.2]} 22...
b5 {[%clk 0:01:19.8]} 23. Re7 {[%clk 0:01:26.5]} 23... Bb7 {[%clk 0:01:15.4]}
24. Rxf7+ {[%clk 0:01:25]} 1-0